bitfinex-derivatives/quotes_SOLF0:USTF0_20250603
["timestamp","ask_amount","ask_price","bid_price","bid_amount"]
[1748950341310,37.01233487,160.87,160.84,0.04427314]
[1748950341311,6.39866363,160.86,160.84,0.04427314]
[1748950342415,6.39866363,160.86,160.84,6.25807314]
[1748950344015,30.79973487,160.87,160.84,0.04427314]
[1748950344315,37.01243487,160.87,160.84,6.25787314]
[1748950344507,37.01243487,160.87,160.84,0.04427314]
[1748950344712,30.79973487,160.87,160.84,0.04427314]
[1748950345819,30.79973487,160.87,160.86,6.213]
[1748950346018,0.03973487,160.87,160.86,6.213]
[1748950346219,0.03973487,160.87,160.85,6.2133]
[1748950347522,0.03973487,160.87,160.86,6.213]
[1748950359627,0.03973487,160.87,160.86,6.213]
[1748950362126,0.03973487,160.87,160.85,6.2132]
[1748950362526,0.03973487,160.87,160.84,0.04427314]
[1748950362724,0.03973487,160.87,160.86,6.213]
[1748950368123,30.76,160.91,160.9,6.2115]
[1748950368433,30.76,160.94,160.88,6.39866363]
[1748950368836,30.76,160.94,160.93,6.2103]
[1748950374644,30.76,160.94,160.92,0.04392285]
[1748950374948,36.9699,160.94,160.92,6.25442285]
[1748950375144,30.76,160.94,160.92,0.04392285]
[1748950377149,30.76,160.94,160.89,6.2117]
[1748950377150,6.39866363,160.93,160.89,6.2117]
[1748950378148,6.43899817,160.93,160.89,6.25265304]
[1748950378350,6.211,160.92,160.89,6.25265304]
[1748950379947,12.64949817,160.93,160.9,6.2113]
[1748950380450,6.25083454,160.93,160.9,6.2113]
[1748950381349,6.2108,160.92,160.89,6.25265304]
[1748950382052,6.2108,160.92,160.9,6.2114]
[1748950383354,6.2111,160.91,160.89,6.25265304]
[1748950383543,6.43899817,160.93,160.89,0.04095304]
[1748950384150,6.2114,160.9,160.89,0.04095304]
[1748950385949,30.74,160.9,160.83,30.74]
[1748950386154,30.74,160.9,160.83,36.51642763]
[1748950386356,6.212,160.89,160.86,6.2127]
[1748950386949,6.25956344,160.89,160.86,6.2127]
[1748950387349,6.2122,160.88,160.86,6.2127]
[1748950388757,6.25956344,160.89,160.86,6.2127]
[1748950389154,6.2126,160.87,160.85,6.2132]
[1748950389354,6.39866363,160.87,160.82,134.86985697]
[1748950389559,30.74,160.86,160.79,5.80070762]
[1748950389754,0.04552867,160.84,160.78,5.80070762]
[1748950389948,0.04552867,160.84,160.79,5.80070762]
[1748950390152,0.04552867,160.84,160.8,6.39866363]
[1748950390354,37.13866363,160.92,160.82,12.19937125]
[1748950390659,37.13866363,160.92,160.85,6.39866363]
[1748950390860,6.2112,160.91,160.85,6.39866363]
[1748950391054,37.13866363,160.92,160.85,6.39866363]
[1748950391250,6.2121,160.89,160.83,12.19937125]
[1748950391455,6.39866363,160.89,160.87,0.04207865]
[1748950391762,36.9524,160.88,160.86,0.04379267]
[1748950391956,30.74,160.88,160.86,0.04379267]
[1748950393658,30.74,160.88,160.86,6.25669267]
[1748950396364,36.9525,160.88,160.86,0.04379267]
[1748950396568,30.74,160.88,160.86,0.04379267]
[1748950397466,6.2126,160.87,160.86,0.04379267]
[1748950400364,6.2137,160.85,160.8,5.80048329]
[1748950400564,6.2137,160.85,160.79,141.3527109]
[1748950400871,6.39866363,160.87,160.79,141.3527109]
[1748950401166,6.39866363,160.85,160.79,5.80048329]
[1748950401366,30.80434882,160.84,160.77,7.89348329]
[1748950401566,30.80434882,160.84,160.77,2.093]
[1748950402067,30.80434882,160.84,160.78,6.39866363]
[1748950402661,30.80434882,160.84,160.81,6.2146]
[1748950403061,30.80434882,160.84,160.78,6.39866363]
[1748950403769,30.80434882,160.84,160.82,6.2145]
[1748950404272,30.80434882,160.84,160.78,12.19474542]
[1748950404468,30.80434882,160.84,160.79,6.39866363]
[1748950404871,30.80434882,160.84,160.83,6.2141]
[1748950405466,37.01814882,160.84,160.78,12.19474542]
[1748950405667,30.80434882,160.84,160.78,6.39866363]
[1748950406177,37.01834882,160.84,160.78,6.39866363]
[1748950406368,37.20301245,160.84,160.76,5.79608179]
[1748950406578,6.39866363,160.82,160.75,40.75048179]
[1748950406767,12.61336363,160.82,160.8,6.2152]
[1748950406967,12.61336363,160.82,160.75,34.9544]
[1748950407167,12.61336363,160.82,160.79,6.2154]
[1748950408675,6.39866363,160.82,160.75,41.35306363]
[1748950409276,6.39866363,160.82,160.79,6.2155]
[1748950409978,6.39866363,160.82,160.73,143.9900318]
[1748950410272,0.04512741,160.79,160.73,143.9900318]
[1748950410473,0.04512741,160.79,160.78,6.2158]
[1748950410872,30.76,160.84,160.77,6.39866363]
[1748950411078,30.76,160.84,160.83,6.2141]
[1748950417187,30.76,160.84,160.82,6.26096108]
[1748950418092,30.76,160.84,160.83,6.2141]
[1748950418291,30.76,160.84,160.82,0.04656108]
[1748950418684,30.76,160.84,160.83,6.2141]
[1748950420085,30.76,160.84,160.82,6.26096108]
[1748950420389,30.76,160.84,160.82,0.04656108]
[1748950420988,0.04073592,160.85,160.82,6.44522471]
[1748950421185,0.23548,160.93,160.84,6.39866363]
[1748950421387,31.05548,160.93,160.87,6.39866363]
[1748950421587,31.05548,160.93,160.9,6.2111]
[1748950421588,37.26598,160.93,160.9,6.2111]
[1748950421888,31.05548,160.93,160.89,6.39866363]
[1748950422092,0.23548,160.93,160.89,6.39866363]
[1748950422390,0.27675948,160.93,160.89,6.44049531]
[1748950423284,0.27675948,160.93,160.92,6.2106]
[1748950427187,30.82,160.99,160.97,6.2087]
[1748950427381,30.82,160.99,160.88,43.2444]
[1748950427382,30.82,160.99,160.95,6.39866363]
[1748950427691,39.36076363,161.02,160.95,6.39866363]
[1748950428091,6.2074,161.01,160.97,6.2087]
[1748950428288,0.04039205,161.01,160.97,0.04404686]
[1748950428690,6.2077,161.0,160.97,0.04404686]
[1748950430090,6.2081,160.99,160.97,0.04404686]
[1748950430483,0.04039205,161.01,160.97,0.04404686]
[1748950430689,0.04039205,161.01,160.97,6.44271049]
[1748950431088,0.04039205,161.01,161.0,6.2076]
[1748950431287,30.82,161.05,160.99,6.39866363]
[1748950431589,30.82,161.05,161.02,6.2066]
[1748950432182,30.82,161.05,161.03,6.2062]
[1748950432393,30.86557662,161.05,161.03,6.2062]
[1748950432692,30.86557662,161.05,161.02,6.25153915]
[1748950432886,30.86557662,161.05,161.02,0.04483915]
[1748950433689,30.86557662,161.05,161.03,6.2062]
[1748950433994,30.86557662,161.05,161.02,0.04483915]
[1748950434191,30.86557662,161.05,161.02,6.25133915]
[1748950434388,30.86557662,161.05,161.02,0.04483915]
[1748950434789,30.86557662,161.05,161.03,6.2064]
[1748950434989,30.86557662,161.05,161.02,0.04483915]
[1748950436094,6.2061,161.04,161.02,0.04483915]
[1748950437086,6.2064,161.03,161.02,0.04483915]
[1748950437693,6.2061,161.04,161.02,0.04483915]
[1748950438997,37.07137662,161.05,161.02,0.04483915]
[1748950439197,30.86557662,161.05,161.02,0.04483915]
[1748950440298,30.86557662,161.05,161.03,6.2061]
[1748950441804,30.86557662,161.05,161.04,6.2061]
[1748950442008,30.86557662,161.05,161.02,0.04483915]
[1748950442396,30.86557662,161.05,161.03,6.2063]
[1748950443103,30.86557662,161.05,161.04,6.2061]
[1748950443308,30.86557662,161.05,161.02,0.04483915]
[1748950443803,30.86557662,161.05,161.03,6.2062]
[1748950444804,30.86557662,161.05,161.02,0.04483915]
[1748950445596,0.04557662,161.05,161.02,0.04483915]
[1748950445997,0.04557662,161.05,161.04,6.2061]
[1748950446203,32.8932,161.11,161.03,6.39866363]
[1748950446399,30.82,161.11,161.05,6.39866363]
[1748950446601,6.2038,161.1,161.06,6.2052]
[1748950446796,30.82,161.11,161.06,6.2052]
[1748950447307,0.04502052,161.1,161.07,0.04301781]
[1748950448305,6.2041,161.09,161.07,0.04301781]
[1748950449406,6.2041,161.09,161.07,6.24791781]
[1748950449703,0.04502052,161.1,161.07,6.44168144]
[1748950450201,6.2045,161.08,161.07,0.04301781]
[1748950450402,30.82,161.09,161.07,0.04301781]
[1748950451302,6.2045,161.08,161.07,0.04301781]
[1748950456204,6.2063,161.04,160.98,575.70236363]
[1748950456601,6.2065,161.03,160.98,567.18]
[1748950456807,37.21866363,161.05,160.98,30.82]
[1748950457209,6.25419415,161.03,161.0,6.2465648]
[1748950457714,6.2072,161.01,161.0,0.0392648]
[1748950458507,6.2069,161.02,161.0,0.0392648]
[1748950460816,12.60586363,161.01,161.0,0.0392648]
[1748950461317,37.21866363,161.01,160.95,30.82]
[1748950461503,6.2079,161.0,160.97,6.2086]
[1748950461812,37.21866363,161.01,160.97,6.2086]
[1748950462009,43.42606363,161.01,160.97,6.2086]
[1748950462214,43.46594666,161.01,160.97,6.25441728]
[1748950463217,6.39866363,160.99,160.97,0.04581728]
[1748950463916,12.60686363,160.99,160.97,0.04581728]
[1748950465011,6.39866363,160.99,160.97,0.04581728]
[1748950466112,132.65866363,160.99,160.86,5.75263468]
[1748950466418,120.04,160.99,160.93,6.2101]
[1748950466610,120.04,160.99,160.89,6.39866363]
[1748950466611,6.39866363,160.97,160.89,6.39866363]
[1748950466811,6.39866363,160.95,160.89,6.39866363]
[1748950467125,0.04555072,160.94,160.91,6.2109]
[1748950468117,0.04555072,160.94,160.92,6.2105]
[1748950469117,0.04555072,160.94,160.9,0.04602265]
[1748950469711,0.04555072,160.94,160.93,6.2103]
[1748950473910,0.04555072,160.94,160.9,0.04602265]
[1748950474714,0.04555072,160.94,160.93,6.2103]
[1748950488822,0.04555072,160.94,160.92,6.2106]
[1748950492326,6.25555072,160.94,160.91,6.2109]
[1748950492833,31.04,160.93,160.91,6.2109]
[1748950494031,31.04,160.93,160.92,6.2107]
[1748950495233,0.04555072,160.94,160.93,6.2104]
[1748950502334,0.04555072,160.94,160.92,6.2105]
[1748950502722,6.39866363,160.93,160.9,0.04602265]
[1748950503636,6.39866363,160.91,160.9,0.04602265]
[1748950507744,37.3107,160.92,160.9,0.04602265]
[1748950512456,31.1,160.92,160.9,0.04602265]
[1748950513257,6.39866363,160.91,160.84,11.98215187]
[1748950513663,6.2121,160.89,160.85,6.2131]
[1748950514053,6.39866363,160.91,160.84,6.1745]
[1748950514358,0.03975641,160.89,160.86,6.25543603]
[1748950516255,6.43842004,160.89,160.86,0.04263603]
[1748950516453,6.43842004,160.89,160.81,5.80411278]
[1748950516454,6.39866363,160.87,160.81,5.80411278]
[1748950516657,6.39866363,160.85,160.79,5.80411278]
[1748950516859,12.61236363,160.85,160.8,6.2153]
[1748950517055,6.39866363,160.85,160.8,6.2153]
[1748950517456,0.04573756,160.84,160.81,6.2149]
[1748950518054,0.04573756,160.84,160.82,6.2143]
[1748950518362,0.04573756,160.84,160.79,12.20277641]
[1748950518564,0.04573756,160.84,160.83,6.2142]
[1748950519759,6.39866363,160.91,160.87,6.2126]
[1748950520055,6.39866363,160.91,160.83,6.39866363]
[1748950520056,37.49866363,160.91,160.83,6.39866363]
[1748950520252,37.49866363,160.91,160.84,6.0894]
[1748950520860,0.04070842,160.89,160.86,0.04573756]
[1748950522061,0.04070842,160.89,160.88,6.2122]
[1748950524769,0.04070842,160.89,160.87,6.2124]
[1748950525965,0.04070842,160.89,160.88,6.2122]
[1748950527868,0.04070842,160.89,160.86,0.04573756]
[1748950528260,0.04070842,160.89,160.86,6.25843756]
[1748950529668,6.25270842,160.89,160.86,0.04573756]
[1748950531068,0.04070842,160.89,160.86,6.25863756]
[1748950532265,6.25250842,160.89,160.86,0.04573756]
[1748950534867,6.2122,160.88,160.86,0.04573756]
[1748950535066,6.43937205,160.89,160.86,0.04573756]
[1748950536971,6.2122,160.88,160.86,0.04573756]
[1748950537172,6.43937205,160.89,160.86,0.04573756]
[1748950537968,6.2122,160.88,160.86,0.04573756]
[1748950538168,6.43937205,160.89,160.86,0.04573756]
[1748950538676,0.04070842,160.89,160.86,0.04573756]
[1748950539077,0.04070842,160.89,160.86,6.25843756]
[1748950539370,0.04070842,160.89,160.86,0.04573756]
[1748950539773,6.25250842,160.89,160.86,6.25863756]
[1748950540469,0.04070842,160.89,160.86,6.25863756]
[1748950541071,0.04070842,160.89,160.86,0.04573756]
[1748950541271,6.39866363,160.88,160.86,0.04573756]
[1748950542871,12.61096363,160.88,160.86,0.04573756]
[1748950543266,6.2125,160.87,160.86,0.04573756]
[1748950543467,37.1725,160.87,160.86,0.04573756]
[1748950545875,37.1725,160.87,160.78,194.11243136]
[1748950545876,150.74,160.87,160.78,5.79973633]
[1748950546181,6.39866363,160.82,160.78,6.2158]
[1748950546484,37.35866363,160.82,160.78,6.2158]
[1748950546674,6.39866363,160.8,160.76,12.01633633]
[1748950546871,6.39866363,160.8,160.76,6.2166]
[1748950547578,6.39866363,160.8,160.75,6.2169]
[1748950547782,6.39866363,160.78,160.73,5.79973633]
[1748950548081,6.39866363,160.78,160.74,6.2174]
[1748950548280,37.35866363,160.78,160.72,42.96973633]
[1748950548475,37.35866363,160.78,160.72,6.21]
[1748950548973,37.35866363,160.78,160.74,6.2173]
[1748950549873,37.35866363,160.78,160.75,6.2172]
[1748950550476,37.35866363,160.78,160.71,5.79363619]
[1748950550671,37.35866363,160.78,160.71,12.19229982]
[1748950550882,30.96,160.78,160.77,6.2164]
[1748950551783,30.96,160.78,160.76,6.2166]
[1748950558588,30.96,160.78,160.71,6.39866363]
[1748950558589,0.04687443,160.79,160.77,6.2163]
[1748950558891,30.92687443,160.79,160.71,6.39866363]
[1748950559283,37.14257443,160.79,160.75,6.2168]
[1748950559589,30.92687443,160.79,160.71,6.39866363]
[1748950559793,30.92687443,160.79,160.73,6.39866363]
[1748950560283,37.14247443,160.79,160.76,6.2166]
[1748950560790,43.54113806,160.79,160.75,6.2169]
[1748950560985,43.53819912,160.79,160.75,6.2169]
[1748950561290,6.2159,160.78,160.75,6.2169]
[1748950561586,37.32259912,160.79,160.74,6.2174]
[1748950561787,37.32259912,160.79,160.71,6.39866363]
[1748950562181,37.32259912,160.79,160.69,30.96]
[1748950562381,0.0423265,160.76,160.71,6.39866363]
[1748950562981,2.0983,160.82,160.79,6.2155]
[1748950562982,30.9,160.82,160.79,6.2155]
[1748950564097,37.15432203,160.82,160.79,6.25495374]
[1748950564593,30.93962203,160.82,160.79,0.03945374]
[1748950564788,6.2151,160.81,160.79,0.03945374]
[1748950565095,30.93962203,160.82,160.79,0.03945374]
[1748950565297,6.2152,160.8,160.79,0.03945374]
[1748950568291,6.2165,160.77,160.73,6.2179]
[1748950569195,6.26414725,160.77,160.73,6.2179]
[1748950569394,6.26414725,160.77,160.74,6.2175]
[1748950569693,0.04764725,160.77,160.7,41.46726363]
[1748950569894,0.04764725,160.77,160.72,6.2183]
[1748950570297,0.04764725,160.77,160.7,41.46726363]
[1748950570499,0.04764725,160.77,160.73,6.2176]
[1748950571094,0.04764725,160.77,160.7,41.46726363]
[1748950571894,0.04764725,160.77,160.75,6.2171]
[1748950572096,0.04764725,160.77,160.72,6.39866363]
[1748950572993,0.04764725,160.77,160.76,6.2168]
[1748950574501,0.04764725,160.77,160.7,35.0686]
[1748950574502,0.04764725,160.77,160.7,40.84341886]
[1748950574698,0.04764725,160.77,160.72,6.39866363]
[1748950575295,0.04764725,160.77,160.75,6.2169]
[1748950575495,0.04764725,160.77,160.72,6.39866363]
[1748950576997,0.04764725,160.77,160.76,6.2167]
[1748950581305,30.9,160.8,160.79,6.2156]
[1748950581800,37.29866363,160.83,160.79,6.2156]
[1748950582000,37.29866363,160.83,160.78,6.2158]
[1748950582191,37.29866363,160.83,160.76,6.39866363]
[1748950582397,0.04336472,160.81,160.78,0.04394248]
[1748950582597,6.2154,160.8,160.78,6.25984248]
[1748950582906,0.04336472,160.81,160.78,6.25984248]
[1748950583292,6.25826472,160.81,160.78,6.25984248]
[1748950583497,0.04336472,160.81,160.79,6.2154]
[1748950583700,0.04336472,160.81,160.78,0.04394248]
[1748950584401,6.2156,160.79,160.78,0.04394248]
[1748950584605,37.1156,160.79,160.78,0.04394248]
[1748950586507,30.9,160.79,160.78,0.04394248]
[1748950587002,0.04336472,160.81,160.8,6.2152]
[1748950588102,0.04336472,160.81,160.79,6.2154]
[1748950588603,0.04336472,160.81,160.8,6.2152]
[1748950593212,6.213,160.86,160.83,6.214]
[1748950593515,6.2133,160.85,160.8,6.39866363]
[1748950594011,6.2133,160.85,160.81,6.2144]
[1748950594208,6.2137,160.84,160.81,6.25665249]
[1748950595321,6.25935824,160.85,160.82,6.2141]
[1748950596120,6.2137,160.84,160.81,6.25685249]
[1748950597424,6.25935824,160.85,160.82,6.2144]
[1748950598331,6.2139,160.84,160.81,6.25685249]
[1748950603633,6.2139,160.84,160.82,6.2144]
[1748950605424,6.25935824,160.85,160.82,6.2144]
[1748950606429,6.2137,160.84,160.82,6.2144]
[1748950609338,6.25935824,160.85,160.82,6.2144]
[1748950610338,6.2136,160.84,160.82,6.2144]
[1748950612244,6.25935824,160.85,160.82,6.2144]
[1748950612840,0.04595824,160.85,160.82,6.39866363]
[1748950613345,0.04595824,160.85,160.84,6.2136]
[1748950614541,0.04595824,160.85,160.84,12.61226363]
[1748950614736,574.0115,160.9,160.88,6.212]
[1748950614942,37.0515,160.9,160.88,6.212]
[1748950615542,37.0515,160.9,160.87,6.2124]
[1748950615740,37.09291253,160.9,160.87,6.25512237]
[1748950616440,30.88141253,160.9,160.88,6.212]
[1748950617941,30.88141253,160.9,160.89,6.2117]
[1748950618146,30.88141253,160.9,160.87,0.04272237]
[1748950618449,6.25291253,160.9,160.87,6.25502237]
[1748950619048,0.04141253,160.9,160.88,6.2121]
[1748950620436,0.04141253,160.9,160.89,6.2117]
[1748950620841,30.8,160.96,160.88,6.39866363]
[1748950621037,30.8,160.96,160.93,6.2099]
[1748950621641,37.0091,160.96,160.93,6.2099]
[1748950621953,37.05592446,160.96,160.93,6.25394348]
[1748950622140,37.05592446,160.96,160.93,0.04404348]
[1748950622745,37.05592446,160.96,160.93,6.25424348]
[1748950622947,30.84682446,160.96,160.93,6.25424348]
[1748950623339,0.04682446,160.96,160.93,0.04404348]
[1748950623545,0.04682446,160.96,160.94,6.39866363]
[1748950624254,0.04682446,160.96,160.95,6.2094]
[1748950627547,0.04682446,160.96,160.94,12.60836363]
[1748950627752,0.04682446,160.96,160.93,0.04404348]
[1748950629151,6.25582446,160.96,160.93,6.25394348]
[1748950632160,6.2095,160.95,160.93,0.04404348]
[1748950632456,0.04682446,160.96,160.93,0.04404348]
[1748950632661,0.04682446,160.96,160.93,6.25394348]
[1748950633766,0.04682446,160.96,160.94,6.2096]
[1748950636057,0.04682446,160.96,160.95,6.2094]
[1748950644156,0.04682446,160.96,160.94,6.2096]
[1748950644562,0.04682446,160.96,160.93,0.04404348]
[1748950644761,6.44548809,160.96,160.93,0.04404348]
[1748950644965,6.44548809,160.96,160.88,30.78]
[1748950644966,6.39866363,160.94,160.88,30.78]
[1748950645266,6.39866363,160.94,160.85,30.78]
[1748950645267,37.17866363,160.94,160.85,30.78]
[1748950645460,6.39866363,160.92,160.85,30.78]
[1748950645655,6.2113,160.91,160.85,30.78]
[1748950646063,0.04028765,160.9,160.86,0.04506152]
[1748950646666,0.04028765,160.9,160.88,6.2119]
[1748950646871,6.25168765,160.9,160.88,6.2119]
[1748950647167,6.43895128,160.9,160.86,0.04506152]
[1748950647465,6.2119,160.89,160.86,6.25786152]
[1748950648068,43.43045128,160.9,160.87,6.2124]
[1748950648375,43.43045128,160.9,160.86,0.04506152]
[1748950648560,37.21895128,160.9,160.86,0.04506152]
[1748950648765,30.82028765,160.9,160.86,0.04506152]
[1748950648965,30.82028765,160.9,160.86,6.44372515]
[1748950649767,30.82028765,160.9,160.89,6.2117]
[1748950649961,0.04028765,160.9,160.89,6.2117]
[1748950650165,0.04028765,160.9,160.86,6.44372515]
[1748950650166,6.25158765,160.9,160.86,0.04506152]
[1748950651666,6.39866363,160.89,160.86,0.04506152]
[1748950652172,12.61056363,160.89,160.86,6.25786152]
[1748950652372,43.39056363,160.89,160.86,6.25786152]
[1748950653072,37.17866363,160.89,160.86,0.04506152]
[1748950653672,37.17866363,160.89,160.87,6.2123]
[1748950654272,43.39036363,160.89,160.86,6.25776152]
[1748950655373,30.78,160.89,160.87,6.2125]
[1748950659469,36.9918,160.89,160.87,6.2125]
[1748950659778,30.78,160.89,160.86,0.04506152]
[1748950660175,30.78,160.89,160.86,6.25776152]
[1748950660579,6.2122,160.88,160.86,0.04506152]
[1748950660778,30.78,160.89,160.86,0.04506152]
[1748950661177,6.2124,160.88,160.86,0.04506152]
[1748950662581,6.2124,160.88,160.86,6.25796152]
[1748950663084,6.2124,160.88,160.86,0.04506152]
[1748950664478,6.2124,160.88,160.86,6.25796152]
[1748950664884,6.2125,160.87,160.86,0.04506152]
[1748950665872,37.17866363,160.89,160.86,0.04506152]
[1748950666478,43.39056363,160.89,160.86,6.25776152]
[1748950668386,6.2122,160.88,160.86,6.25776152]
[1748950668985,43.39056363,160.89,160.86,6.25776152]
[1748950669182,37.17866363,160.89,160.86,0.04506152]
[1748950670580,43.39056363,160.89,160.86,6.25776152]
[1748950671175,43.39056363,160.89,160.87,6.2125]
[1748950671881,37.17866363,160.89,160.87,6.2125]
[1748950672284,43.39036363,160.89,160.87,6.2125]
[1748950673689,37.17866363,160.89,160.86,6.25776152]
[1748950674692,6.2121,160.88,160.86,6.25776152]
[1748950675277,43.39056363,160.89,160.87,6.2125]
[1748950675885,37.17866363,160.89,160.86,0.04506152]
[1748950676085,6.2121,160.88,160.86,6.25776152]
[1748950678396,6.2121,160.88,160.86,0.04506152]
[1748950678597,6.2125,160.87,160.86,0.04506152]
[1748950679200,6.2123,160.88,160.86,6.25776152]
[1748950680493,6.2125,160.87,160.86,0.04506152]
[1748950680695,37.17866363,160.89,160.86,0.04506152]
[1748950682100,6.2123,160.88,160.86,6.25786152]
[1748950682605,0.04028765,160.9,160.86,0.04506152]
[1748950683109,0.04028765,160.9,160.88,6.2119]
[1748950683708,6.25168765,160.9,160.88,6.2119]
[1748950684307,0.04028765,160.9,160.89,6.2117]
[1748950684499,0.04028765,160.9,160.86,0.04506152]
[1748950684703,6.43895128,160.9,160.86,0.04506152]
[1748950684904,6.2123,160.88,160.86,0.04506152]
[1748950686605,6.2125,160.87,160.86,0.04506152]
[1748950687007,6.2139,160.84,160.81,6.2146]
[1748950687207,6.39866363,160.85,160.81,6.2146]
[1748950687608,6.2137,160.84,160.81,6.2146]
[1748950688008,6.25715037,160.84,160.81,6.25773983]
[1748950688206,6.25715037,160.84,160.82,6.2144]
[1748950688408,6.214,160.83,160.81,0.04313983]
[1748950688805,12.61306363,160.83,160.81,0.04313983]
[1748950689005,6.39866363,160.83,160.81,0.04313983]
[1748950689404,6.2144,160.82,160.81,0.04313983]
[1748950692110,6.39866363,160.83,160.81,0.04313983]
[1748950692714,6.39866363,160.83,160.81,6.25773983]
[1748950694013,12.61276363,160.83,160.81,6.25773983]
[1748950695009,6.39866363,160.83,160.81,6.25773983]
[1748950695711,6.39866363,160.83,160.82,6.2144]
[1748950695916,0.04345037,160.84,160.81,0.04313983]
[1748950696711,0.04345037,160.84,160.82,6.2144]
[1748950696912,0.04345037,160.84,160.81,0.04313983]
[1748950698016,0.04345037,160.84,160.83,6.214]
[1748950698411,0.04345037,160.84,160.81,0.04313983]
[1748950699116,0.04345037,160.84,160.81,6.25763983]
[1748950699317,6.25735037,160.84,160.81,6.25763983]
[1748950700314,0.04345037,160.84,160.81,0.04313983]
[1748950700515,37.21866363,160.83,160.81,0.04313983]
[1748950700715,37.21866363,160.83,160.76,5.80254584]
[1748950701018,30.82,160.83,160.75,192.14934335]
[1748950701411,37.034,160.83,160.75,192.14934335]
[1748950701613,37.034,160.83,160.8,6.215]
[1748950701922,37.07394758,160.83,160.8,6.25995774]
[1748950702521,30.85994758,160.83,160.8,0.04495774]
[1748950703117,6.2146,160.82,160.8,0.04495774]
[1748950705219,12.61326363,160.82,160.8,0.04495774]
[1748950705520,6.2148,160.81,160.8,0.04495774]
[1748950705821,12.61326363,160.82,160.8,6.26005774]
[1748950706622,12.61326363,160.82,160.8,0.04495774]
[1748950708019,12.61326363,160.82,160.8,6.26015774]
[1748950708723,12.61326363,160.82,160.8,0.04495774]
[1748950710123,12.61326363,160.82,160.8,6.26015774]
[1748950710315,12.61326363,160.82,160.8,0.04495774]
[1748950713330,6.2148,160.81,160.8,0.04495774]
[1748950717829,6.39866363,160.82,160.73,30.82]
[1748950718026,6.39866363,160.8,160.73,30.82]
[1748950718429,6.39866363,160.8,160.75,6.2169]
[1748950718926,6.2162,160.78,160.75,6.2169]
[1748950720428,6.2162,160.78,160.76,6.2165]
[1748950723831,37.077403,160.79,160.77,6.2161]
[1748950724524,30.861603,160.79,160.71,47.19220092]
[1748950725026,30.861603,160.79,160.77,6.2161]
[1748950725631,37.077203,160.79,160.77,6.2161]
[1748950726532,37.077203,160.79,160.76,6.2166]
[1748950727330,37.077203,160.79,160.77,6.2164]
[1748950728330,6.216,160.78,160.76,6.2166]
[1748950729236,6.2165,160.77,160.75,6.217]
[1748950729535,30.861603,160.79,160.75,6.217]
[1748950730138,30.861603,160.79,160.71,47.19916617]
[1748950730334,6.2166,160.77,160.72,5.79880254]
[1748950730726,6.2166,160.77,160.75,6.2169]
[1748950731036,6.2163,160.78,160.73,5.79880254]
[1748950731337,0.04130919,160.77,160.76,6.2165]
[1748950736742,0.04130919,160.77,160.76,12.02314428]
[1748950737340,0.04130919,160.77,160.76,12.02388499]
[1748950738039,30.82,160.82,160.76,5.80738499]
[1748950739042,6.44344055,160.81,160.77,0.04026826]
[1748950739642,6.2154,160.8,160.77,6.25626826]
[1748950741542,6.2154,160.8,160.78,6.2159]
[1748950741935,6.44344055,160.81,160.77,0.04026826]
[1748950741936,6.2157,160.79,160.77,0.04026826]
[1748950742640,6.2157,160.79,160.77,6.25646826]
[1748950743238,4.10039067,160.78,160.77,6.25646826]
[1748950743733,10.31639067,160.78,160.77,0.04026826]
[1748950746343,4.10039067,160.78,160.77,6.25666826]
[1748950747642,4.10039067,160.78,160.77,0.04026826]
[1748950748445,10.31639067,160.78,160.77,0.04026826]
[1748950751639,6.217,160.76,160.72,7.73449815]
[1748950751840,4.10039067,160.76,160.73,5.81330031]
[1748950752145,4.10039067,160.77,160.75,6.2169]
[1748950752343,37.2186,160.8,160.74,4.10039067]
[1748950752641,4.14783707,160.79,160.75,4.10039067]
[1748950752841,0.0474464,160.79,160.77,4.10039067]
[1748950753242,0.0474464,160.79,160.78,6.216]
[1748950769251,0.0474464,160.79,160.78,10.31639067]
[1748950769550,34.92039067,160.86,160.78,11.84800625]
[1748950769751,6.2135,160.85,160.82,4.10039067]
[1748950769949,6.2135,160.85,160.82,10.31449067]
[1748950770351,6.25564968,160.85,160.82,10.35899386]
[1748950770751,6.2138,160.84,160.82,10.35899386]
[1748950770955,6.2138,160.84,160.82,0.04450319]
[1748950772461,6.2138,160.84,160.83,2.70036797]
[1748950772761,6.2138,160.84,160.83,2.70038727]
[1748950772955,6.2138,160.84,160.82,0.04450319]